fUSD/lending_fUSD_20250119
["ID","MTS","AMOUNT","RATE_DAILY","PERIOD"]
[349537541,1737283891469,-611.64044305,0.00020821,2]
[349537542,1737283891479,-500.0,0.00020821,2]
[349537543,1737283891490,-500.0,0.00020821,2]
[349537544,1737283891501,-500.0,0.00020821,2]
[349537545,1737283891511,-324.1281333,0.00020821,2]
[349537546,1737283891523,-565.03,0.00020821,2]
[349537547,1737283891532,-500.0,0.00020821,2]
[349537548,1737283891542,-500.0,0.00020821,2]
[349537549,1737283891551,-500.0,0.00020821,2]
[349537550,1737283891560,-500.0,0.00020821,2]
[349537551,1737283891570,-500.0,0.00020821,2]
[349537552,1737283891579,-510.73710988,0.00020821,2]
[349537553,1737283891588,-500.0,0.00020821,2]
[349537554,1737283891597,-500.0,0.00020821,2]
[349537555,1737283891606,-500.0,0.00020821,2]
[349537556,1737283891615,-500.0,0.00020821,2]
[349537557,1737283891624,-500.0,0.00020821,2]
[349537558,1737283891634,-500.0,0.00020821,2]
[349537559,1737283891643,-500.0,0.00020821,2]
[349537560,1737283891653,-500.0,0.00020821,2]
[349537561,1737283891664,-500.0,0.00020821,2]
[349537562,1737283891674,-500.0,0.00020821,2]
[349537563,1737283891684,-500.0,0.00020821,2]
[349537564,1737283891694,-500.0,0.00020821,2]
[349537565,1737283891705,-500.0,0.00020821,2]
[349537566,1737283891714,-500.0,0.00020821,2]
[349537567,1737283891723,-500.0,0.00020821,2]
[349537568,1737283891733,-500.0,0.00020821,2]
[349537569,1737283891743,-500.0,0.00020821,2]
[349537570,1737283891752,-500.0,0.00020821,2]
[349537571,1737283891761,-500.0,0.00020821,2]
[349537572,1737283891770,-500.0,0.00020821,2]
[349537573,1737283891779,-500.0,0.00020821,2]
[349537574,1737283891788,-500.0,0.00020821,2]
[349537575,1737283891797,-500.0,0.00020821,2]
[349537576,1737283891807,-500.0,0.00020821,2]
[349537577,1737283891817,-500.0,0.00020821,2]
[349537578,1737283891826,-500.0,0.00020821,2]
[349537579,1737283891835,-500.0,0.00020821,2]
[349537580,1737283891844,-500.0,0.00020821,2]
[349537581,1737283891853,-500.0,0.00020821,2]
[349537582,1737283891863,-500.0,0.00020821,2]
[349537583,1737283891872,-500.0,0.00020821,2]
[349537584,1737283891882,-500.0,0.00020821,2]
[349537585,1737283891891,-500.0,0.00020821,2]
[349537586,1737283891901,-500.0,0.00020821,2]
[349537587,1737283891911,-500.0,0.00020821,2]
[349537588,1737283891920,-167.251504,0.00020821,2]
[349537589,1737283891929,-500.0,0.00020821,2]
[349537590,1737283891939,-500.0,0.00020821,2]
[349537591,1737283891948,-500.0,0.00020821,2]
[349537592,1737283891959,-500.0,0.00020821,2]
[349537593,1737283891969,-500.0,0.00020821,2]
[349537594,1737283891979,-500.0,0.00020821,2]
[349537595,1737283891988,-500.0,0.00020821,2]
[349537596,1737283891998,-500.0,0.00020821,2]
[349537597,1737283892008,-2043.55,0.00020821,2]
[349537598,1737283892018,-500.0,0.00020821,2]
[349537599,1737283892028,-500.0,0.00020821,2]
[349537600,1737283892038,-549.86,0.00020821,2]
[349537601,1737283892048,-500.0,0.00020821,2]
[349537602,1737283892057,-500.0,0.00020821,2]
[349537603,1737283892066,-500.0,0.00020821,2]
[349537604,1737283892076,-500.0,0.00020821,2]
[349537605,1737283892085,-500.0,0.00020821,2]
[349537606,1737283892095,-500.0,0.00020821,2]
[349537607,1737283892104,-500.0,0.00020821,2]
[349537608,1737283892114,-303.02722138,0.00020821,2]
[349537609,1737283892123,-500.0,0.00020821,2]
[349537610,1737283892133,-500.0,0.00020821,2]
[349537611,1737283892142,-500.0,0.00020821,2]
[349537612,1737283892151,-500.0,0.00020821,2]
[349537613,1737283892161,-500.0,0.00020821,2]
[349537614,1737283892170,-500.0,0.00020821,2]
[349537615,1737283892179,-500.0,0.00020821,2]
[349537616,1737283892189,-500.0,0.00020821,2]
[349537617,1737283892199,-500.0,0.00020821,2]
[349537618,1737283892211,-500.0,0.00020821,2]
[349537619,1737283892221,-500.0,0.00020821,2]
[349537620,1737283892231,-500.0,0.00020821,2]
[349537621,1737283892241,-500.0,0.00020821,2]
[349537622,1737283892250,-500.0,0.00020821,2]
[349537623,1737283892263,-528.74,0.00020821,2]
[349537624,1737283892272,-580.43,0.00020821,2]
[349537625,1737283892281,-605.84,0.00020821,2]
[349537626,1737283892291,-637.03,0.00020821,2]
[349537627,1737283892300,-500.0,0.00020821,2]
[349537628,1737283892310,-500.0,0.00020821,2]
[349537629,1737283892319,-521.4,0.00020821,2]
[349537630,1737283892328,-500.0,0.00020821,2]
[349537631,1737283892339,-500.0,0.00020821,2]
[349537632,1737283892349,-627.47,0.00020821,2]
[349537633,1737283892358,-500.0,0.00020821,2]
[349537634,1737283892368,-500.0,0.00020821,2]
[349537635,1737283892378,-500.0,0.00020821,2]
[349537636,1737283892388,-500.0,0.00020821,2]
[349537637,1737283892398,-500.0,0.00020821,2]
[349537638,1737283892408,-579.9,0.00020821,2]
[349537639,1737283892417,-500.0,0.00020821,2]
[349537640,1737283892426,-500.0,0.00020821,2]
[349537641,1737283892437,-500.0,0.00020821,2]
[349537642,1737283892446,-500.0,0.00020821,2]
[349537643,1737283892459,-500.0,0.00020821,2]
[349537644,1737283892469,-500.0,0.00020821,2]
[349537645,1737283892479,-500.0,0.00020821,2]
[349537646,1737283892489,-500.0,0.00020821,2]
[349537647,1737283892499,-500.0,0.00020821,2]
[349537648,1737283892509,-500.0,0.00020821,2]
[349537649,1737283892518,-500.0,0.00020821,2]
[349537650,1737283892528,-500.0,0.00020821,2]
[349537651,1737283892538,-500.0,0.00020821,2]
[349537652,1737283892547,-500.0,0.00020821,2]
[349537653,1737283892557,-1003.77,0.00020821,2]
[349537654,1737283892567,-500.0,0.00020821,2]
[349537655,1737283892577,-500.0,0.00020821,2]
[349537656,1737283892586,-1030.56,0.00020821,2]
[349537657,1737283892596,-500.0,0.00020821,2]
[349537658,1737283892606,-631.77,0.00020821,2]
[349537659,1737283892616,-2323.77,0.00020821,2]
[349537660,1737283892625,-635.02,0.00020821,2]
[349537661,1737283892635,-500.0,0.00020821,2]
[349537662,1737283892646,-577.63,0.00020821,2]
[349537663,1737283892656,-500.0,0.00020821,2]
[349537664,1737283892666,-500.0,0.00020821,2]
[349537665,1737283892676,-3097.0,0.00020821,2]
[349537666,1737283892685,-1005.63,0.00020821,2]
[349537667,1737283892695,-500.0,0.00020821,2]
[349537668,1737283892710,-500.0,0.00020821,2]
[349537669,1737283892720,-500.0,0.00020821,2]
[349537670,1737283892730,-500.0,0.00020821,2]
[349537671,1737283892740,-500.0,0.00020821,2]
[349537672,1737283892750,-1256.94,0.00020821,2]
[349537673,1737283892761,-1216.46,0.00020821,2]
[349537674,1737283892771,-500.0,0.00020821,2]
[349537675,1737283892932,-608.69,0.00020821,2]
[349537676,1737283892963,-11879.94,0.00020821,2]
[349537677,1737283892973,-500.0,0.00020821,2]
[349537678,1737283892983,-521.65081438,0.00020821,2]
[349537679,1737283892993,-500.0,0.00020821,2]
[349537680,1737283893002,-500.0,0.00020821,2]
[349537681,1737283893013,-688.32,0.00020821,2]
[349537682,1737283893024,-3397.4,0.00020821,2]
[349537683,1737283893034,-608.87938968,0.00020821,2]
[349537684,1737283893044,-534.51993967,0.00020821,2]
[349537685,1737283893054,-500.0,0.00020821,2]
[349537686,1737283893064,-500.0,0.00020821,2]
[349537687,1737283893074,-515.19676591,0.00020821,2]
[349537688,1737283893085,-5667.54,0.00020821,2]
[349537689,1737283893095,-1735.14,0.00020821,2]
[349537690,1737283893104,-267.89801958,0.00020821,2]
[349537691,1737283893114,-500.0,0.00020821,2]
[349537692,1737283893123,-1499.614895,0.00020821,2]
[349537693,1737283893133,-942.38,0.00020821,2]
[349537694,1737283893142,-1499.614888,0.00020821,2]
[349537695,1737283893151,-500.0,0.00020821,2]
[349537696,1737283893161,-516.07849887,0.00020821,2]
[349537697,1737283893172,-617.68,0.00020821,2]
[349537698,1737283893181,-500.0,0.00020821,2]
[349537699,1737283893191,-3188.95,0.00020821,2]
[349537700,1737283893200,-500.0,0.00020821,2]
[349537701,1737283893211,-2260.69,0.00020821,2]
[349537702,1737283893221,-500.0,0.00020821,2]
[349537703,1737283893231,-1124.05,0.00020821,2]
[349537704,1737283893241,-500.0,0.00020821,2]
[349537705,1737283893253,-500.0,0.00020821,2]
[349537706,1737283893265,-544.77,0.00020821,2]
[349537707,1737283893275,-500.0,0.00020821,2]
[349537708,1737283893285,-451.27482127,0.00020821,2]
[349537709,1737283893296,-1632.27,0.00020821,2]
[349537710,1737283893305,-500.0,0.00020821,2]
[349537711,1737283893315,-1360.05,0.00020821,2]
[349537712,1737283893326,-550.47,0.00020821,2]
[349537713,1737283893336,-730.23,0.00020821,2]
[349537714,1737283893346,-518.64308734,0.00020821,2]
[349537715,1737283893356,-500.0,0.00020821,2]
[349537716,1737283893366,-1209.91,0.00020821,2]
[349537717,1737283893376,-500.0,0.00020821,2]
[349537718,1737283893385,-962.98,0.00020821,2]
[349537719,1737283893396,-530.47393239,0.00020821,2]
[349537720,1737283893406,-1043.59,0.00020821,2]
[349537721,1737283893416,-704.36,0.00020821,2]
[349537722,1737283893427,-500.0,0.00020821,2]
[349537723,1737283893437,-543.14,0.00020821,2]
[349537724,1737283893447,-2894.56,0.00020821,2]
[349537725,1737283893458,-500.0,0.00020821,2]
[349537726,1737283893468,-1112.25,0.00020821,2]
[349537727,1737283893478,-1126.32,0.00020821,2]
[349537728,1737283893488,-500.0,0.00020821,2]
[349537729,1737283893498,-541.55,0.00020821,2]
[349537730,1737283893508,-1448.99,0.00020821,2]
[349537731,1737283893517,-500.0,0.00020821,2]
[349537732,1737283893526,-500.0,0.00020821,2]
[349537733,1737283893535,-913.02,0.00020821,2]
[349537734,1737283893544,-500.0,0.00020821,2]
[349537735,1737283893554,-500.0,0.00020821,2]
[349537736,1737283893563,-1265.52,0.00020821,2]
[349537737,1737283893572,-4009.74,0.00020821,2]
[349537738,1737283893582,-700.51,0.00020821,2]
[349537739,1737283893591,-500.0,0.00020821,2]
[349537740,1737283893601,-500.0,0.00020821,2]
[349537741,1737283893611,-940.25,0.00020821,2]
[349537742,1737283893620,-500.0,0.00020821,2]
[349537743,1737283893630,-500.0,0.00020821,2]
[349537744,1737283893641,-500.0,0.00020821,2]
[349537745,1737283893651,-2618.63,0.00020821,2]
[349537746,1737283893660,-500.0,0.00020821,2]
[349537747,1737283893670,-500.0,0.00020821,2]
[349537748,1737283893679,-500.0,0.00020821,2]
[349537749,1737283893688,-600.2,0.00020821,2]
[349537750,1737283893698,-500.0,0.00020821,2]
[349537751,1737283893710,-7315.83,0.00020821,2]
[349537752,1737283893720,-2144.05,0.00020821,2]
[349537753,1737283893730,-1886.57,0.00020821,2]
[349537754,1737283893741,-1320.33,0.00020821,2]
[349537755,1737283893750,-500.0,0.00020821,2]
[349537756,1737283893760,-500.0,0.00020821,2]
[349537757,1737283893770,-274.49359845,0.00020821,2]
[349537758,1737283893779,-1833.46,0.00020821,2]
[349537759,1737283893789,-500.0,0.00020821,2]
[349537760,1737283893798,-500.0,0.00020821,2]
[349537761,1737283893807,-1146.48,0.00020821,2]
[349537762,1737283893818,-500.0,0.00020821,2]
[349537763,1737283893829,-6964.65,0.00020821,2]
[349537764,1737283893838,-1729.83,0.00020821,2]
[349537765,1737283893848,-500.0,0.00020821,2]
[349537766,1737283893859,-2349.68,0.00020821,2]
[349537767,1737283893869,-500.0,0.00020821,2]
[349537768,1737283893878,-500.0,0.00020821,2]
[349537769,1737283893889,-2142.93,0.00020821,2]
[349537770,1737283893899,-1744.21,0.00020821,2]
[349537771,1737283893910,-686.43,0.00020821,2]
[349537772,1737283893920,-2892.09,0.00020821,2]
[349537773,1737283893929,-151.0,0.00020821,2]
[349537774,1737283893940,-500.0,0.00020821,2]
[349537775,1737283893950,-500.0,0.00020821,2]
[349537776,1737283893965,-205.56,0.00020821,2]
[349537777,1737283893975,-623.62,0.00020821,2]
[349537778,1737283893985,-1002.08,0.00020821,2]
[349537779,1737283893995,-500.0,0.00020821,2]
[349537780,1737283894005,-770.77,0.00020821,2]
[349537781,1737283894015,-9460.13,0.00020821,2]
[349537782,1737283894025,-2072.12,0.00020821,2]
[349537783,1737283894034,-500.0,0.00020821,2]
[349537784,1737283894044,-4098.31,0.00020821,2]
[349537785,1737283894054,-500.0,0.00020821,2]
[349537786,1737283894064,-500.0,0.00020821,2]
[349537787,1737283894074,-500.0,0.00020821,2]
[349537788,1737283894083,-509.25,0.00020821,2]
[349537789,1737283894093,-500.0,0.00020821,2]
[349537790,1737283894103,-500.0,0.00020821,2]
[349537791,1737283894113,-503.74,0.00020821,2]
[349537792,1737283894122,-500.0,0.00020821,2]
[349537793,1737283894132,-500.0,0.00020821,2]
[349537794,1737283894141,-500.0,0.00020821,2]
[349537795,1737283894151,-1622.26,0.00020821,2]
[349537796,1737283894161,-500.0,0.00020821,2]
[349537797,1737283894171,-500.0,0.00020821,2]
[349537798,1737283894182,-839.58,0.00020821,2]
[349537799,1737283894192,-622.13,0.00020821,2]
[349537800,1737283894204,-746.16,0.00020821,2]
[349537801,1737283894214,-500.0,0.00020821,2]
[349537802,1737283894224,-2122.49,0.00020821,2]
[349537803,1737283894234,-700.78,0.00020821,2]
[349537804,1737283894244,-151.0,0.00020821,2]
[349537805,1737283894254,-500.0,0.00020821,2]
[349537806,1737283894267,-500.0,0.00020821,2]
[349537807,1737283894278,-500.0,0.00020821,2]
[349537808,1737283894287,-1394.781451,0.00020821,2]
[349537809,1737283894297,-6710.42,0.00020821,2]
[349537810,1737283894307,-968.36,0.00020821,2]
[349537811,1737283894317,-500.0,0.00020821,2]
[349537812,1737283894327,-500.0,0.00020821,2]
[349537813,1737283894339,-500.0,0.00020821,2]
[349537814,1737283894349,-1394.781451,0.00020821,2]
[349537815,1737283894360,-500.0,0.00020821,2]
[349537816,1737283894370,-2138.74,0.00020821,2]
[349537817,1737283894380,-2990.26,0.00020821,2]
[349537818,1737283894390,-500.0,0.00020821,2]
[349537819,1737283894399,-939.99,0.00020821,2]
[349537820,1737283894410,-1497.89,0.00020821,2]
[349537821,1737283894419,-500.0,0.00020821,2]
[349537822,1737283894430,-500.0,0.00020821,2]
[349537823,1737283894439,-535.66344733,0.00020821,2]
[349537824,1737283894448,-500.0,0.00020821,2]
[349537825,1737283894460,-500.0,0.00020821,2]
[349537826,1737283894470,-1550.84,0.00020821,2]
[349537827,1737283894480,-500.0,0.00020821,2]
[349537828,1737283894490,-500.0,0.00020821,2]
[349537829,1737283894499,-500.0,0.00020821,2]
[349537830,1737283894513,-1454.18,0.00020821,2]
[349537831,1737283894523,-660.46,0.00020821,2]
[349537832,1737283894533,-857.18,0.00020821,2]
[349537833,1737283894543,-2515.58,0.00020821,2]
[349537834,1737283894554,-500.0,0.00020821,2]
[349537835,1737283894564,-500.0,0.00020821,2]
[349537836,1737283894574,-500.0,0.00020821,2]
[349537837,1737283894585,-1304.59,0.00020821,2]
[349537838,1737283894596,-1399.53,0.00020821,2]
[349537839,1737283894606,-500.0,0.00020821,2]
[349537840,1737283894618,-500.0,0.00020821,2]
[349537841,1737283894628,-961.23,0.00020821,2]
[349537842,1737283894639,-500.0,0.00020821,2]
[349537843,1737283894648,-500.0,0.00020821,2]
[349537844,1737283894659,-6814.74,0.00020821,2]
[349537845,1737283894669,-500.0,0.00020821,2]
[349537846,1737283894679,-563.53,0.00020821,2]
[349537847,1737283894688,-2694.65,0.00020821,2]
[349537848,1737283894699,-500.0,0.00020821,2]
[349537849,1737283894711,-256.50387995,0.00020821,2]
[349537850,1737283894721,-500.0,0.00020821,2]
[349537851,1737283894731,-507.17148922,0.00020821,2]
[349537852,1737283894741,-2319.64,0.00020821,2]
[349537853,1737283894751,-2281.0,0.00020821,2]
[349537854,1737283894761,-500.0,0.00020821,2]
[349537855,1737283894770,-500.0,0.00020821,2]
[349537856,1737283894779,-500.0,0.00020821,2]
[349537857,1737283894789,-579.85,0.00020821,2]
[349537858,1737283894799,-500.0,0.00020821,2]
[349537859,1737283894808,-608.39,0.00020821,2]
[349537860,1737283894818,-814.26,0.00020821,2]
[349537861,1737283894827,-500.0,0.00020821,2]
[349537862,1737283894837,-500.0,0.00020821,2]
[349537863,1737283894846,-666.3,0.00020821,2]
[349537864,1737283894856,-510.93,0.00020821,2]
[349537865,1737283894866,-1602.86,0.00020821,2]
[349537866,1737283894875,-1636.5,0.00020821,2]
[349537867,1737283894885,-500.0,0.00020821,2]
[349537868,1737283894895,-500.0,0.00020821,2]
[349537869,1737283894905,-500.0,0.00020821,2]
[349537870,1737283894915,-626.38,0.00020821,2]
[349537871,1737283894925,-780.64,0.00020821,2]
[349537872,1737283894934,-1000.0,0.00020821,2]
[349537873,1737283894945,-633.29,0.00020821,2]
[349537874,1737283894955,-500.0,0.00020821,2]
[349537875,1737283894964,-500.0,0.00020821,2]
[349537876,1737283894974,-500.0,0.00020821,2]
[349537877,1737283894983,-500.0,0.00020821,2]
[349537878,1737283894993,-500.0,0.00020821,2]
[349537879,1737283895002,-1313.29,0.00020821,2]
[349537880,1737283895012,-500.0,0.00020821,2]
[349537881,1737283895021,-659.22,0.00020821,2]
[349537882,1737283895030,-917.59,0.00020821,2]
[349537883,1737283895040,-500.0,0.00020821,2]
[349537884,1737283895049,-562.37,0.00020821,2]
[349537885,1737283895058,-633.86,0.00020821,2]
[349537886,1737283895067,-500.0,0.00020821,2]
[349537887,1737283895077,-1551.56,0.00020821,2]
[349537888,1737283895086,-497.050586,0.00020821,2]
[349537889,1737283895095,-500.0,0.00020821,2]
[349537890,1737283895104,-500.0,0.00020821,2]
[349537891,1737283895114,-1631.28,0.00020821,2]
[349537892,1737283895124,-509.87,0.00020821,2]
[349537893,1737283895134,-500.0,0.00020821,2]
[349537894,1737283895143,-500.0,0.00020821,2]
[349537895,1737283895153,-500.0,0.00020821,2]
[349537896,1737283895163,-11562.91,0.00020821,2]
[349537897,1737283895172,-497.05058,0.00020821,2]
[349537898,1737283895183,-2945.05,0.00020821,2]
[349537899,1737283895193,-500.0,0.00020821,2]
[349537900,1737283895204,-1035.44,0.00020821,2]
[349537901,1737283895214,-1288.18,0.00020821,2]
[349537902,1737283895224,-506.16141629,0.00020821,2]
[349537903,1737283895234,-500.0,0.00020821,2]
[349537904,1737283895244,-604.12,0.00020821,2]
[349537905,1737283895254,-701.15,0.00020821,2]
[349537906,1737283895268,-684.27,0.00020821,2]
[349537907,1737283895278,-726.31,0.00020821,2]
[349537908,1737283895287,-500.0,0.00020821,2]
[349537909,1737283895297,-693.12,0.00020821,2]
[349537910,1737283895307,-1243.35,0.00020821,2]
[349537911,1737283895318,-517.50922297,0.00020821,2]
[349537912,1737283895328,-500.0,0.00020821,2]
[349537913,1737283895339,-583.23,0.00020821,2]
[349537914,1737283895349,-438.14,0.00020889,2]
[349537915,1737283895358,-7405.82,0.000209,2]
[349537916,1737283895367,-871.3353095,0.000209,2]
[349537917,1737283895377,-500.0,0.00020958,2]
[349537918,1737283895387,-203.94393132,0.00020983,2]
[349537919,1737283895396,-269.469378,0.00020995,2]
[349537920,1737283895406,-46511.0,0.00021,2]
[349537921,1737283895415,-204554.66606576,0.00021,2]
[349537922,1737283895425,-85055.54191316,0.00021,2]
[349537923,1737283895435,-230.0,0.00021,2]
[349537924,1737283895444,-8560.13035115,0.00021,2]
[349537925,1737283895455,-2101.76,0.00021,2]
[349537926,1737283895464,-700.0,0.00021,2]
[349537927,1737283895474,-1500.0,0.00021022,2]
[349537928,1737283895484,-1584.60113848,0.00021022,2]
[349537929,1737283895494,-174.10049078,0.00021026,2]
[349537930,1737283895503,-1204.47074177,0.00021093,2]
[349537931,1737283895513,-3166.15327754,0.00021093,2]
[349537932,1737283895522,-693.970146,0.00021095,2]
[349537933,1737283895531,-1179.248694,0.00021095,2]
[349537934,1737283895541,-500.0,0.00021095,2]
[349537935,1737283895550,-500.0,0.00021095,2]
[349537936,1737283895561,-428.1816931,0.00021095,2]
[349537937,1737283895570,-500.0,0.00021095,2]
[349537938,1737283895579,-500.0,0.00021095,2]
[349537939,1737283895589,-500.0,0.00021095,2]
[349537940,1737283895598,-500.0,0.00021095,2]
[349537941,1737283895608,-500.0,0.00021095,2]
[349537942,1737283895618,-500.0,0.00021095,2]
[349537943,1737283895628,-500.0,0.00021095,2]
[349537944,1737283895637,-500.0,0.00021095,2]
[349537945,1737283895646,-500.0,0.00021095,2]
[349537946,1737283895656,-879.97,0.00021095,2]
[349537947,1737283895666,-538.6,0.00021095,2]
[349537948,1737283895676,-506.32,0.00021095,2]
[349537949,1737283895686,-1099.14,0.00021095,2]
[349537950,1737283895696,-500.0,0.00021095,2]
[349537951,1737283895708,-672.06,0.00021095,2]
[349537952,1737283895718,-632.50862155,0.00021095,2]
[349537953,1737283895728,-500.0,0.00021095,2]
[349537954,1737283895737,-500.0,0.00021095,2]
[349537955,1737283895746,-500.0,0.00021095,2]
[349537956,1737283895755,-500.0,0.00021095,2]
[349537957,1737283895764,-500.0,0.00021095,2]
[349537958,1737283895773,-509.50230113,0.00021095,2]
[349537959,1737283895781,-500.0,0.00021095,2]
[349537960,1737283895790,-500.0,0.00021095,2]
[349537961,1737283895798,-500.0,0.00021095,2]
[349537962,1737283895805,-500.0,0.00021095,2]
[349537963,1737283895813,-500.0,0.00021095,2]
[349537964,1737283895822,-500.0,0.00021095,2]
[349537965,1737283895831,-500.0,0.00021095,2]
[349537966,1737283895841,-500.0,0.00021095,2]
[349537967,1737283895851,-505.93144472,0.00021095,2]
[349537968,1737283895860,-791.74,0.00021095,2]
[349537969,1737283895870,-500.0,0.00021095,2]
[349537970,1737283895879,-500.0,0.00021095,2]
[349537971,1737283895889,-500.0,0.00021095,2]
[349537972,1737283895898,-568.09475552,0.00021095,2]
[349537973,1737283895908,-500.0,0.00021095,2]
[349537974,1737283895917,-533.94,0.00021095,2]
[349537975,1737283895927,-500.0,0.00021095,2]
[349537976,1737283895937,-500.0,0.00021095,2]
[349537977,1737283895946,-969.95,0.00021095,2]
[349537978,1737283895957,-500.0,0.00021095,2]
[349537979,1737283895967,-500.0,0.00021095,2]
[349537980,1737283895977,-558.57473623,0.00021095,2]
[349537981,1737283895986,-500.0,0.00021095,2]
[349537982,1737283895996,-500.0,0.00021095,2]
[349537983,1737283896005,-500.0,0.00021095,2]
[349537984,1737283896015,-500.0,0.00021095,2]
[349537985,1737283896024,-1154.09,0.00021095,2]
[349537986,1737283896034,-546.77,0.00021095,2]
[349537987,1737283896043,-500.0,0.00021095,2]
[349537988,1737283896052,-500.0,0.00021095,2]
[349537989,1737283896062,-500.0,0.00021095,2]
[349537990,1737283896072,-1248.1,0.00021095,2]
[349537991,1737283896081,-500.0,0.00021095,2]
[349537992,1737283896091,-500.0,0.00021095,2]
[349537993,1737283896100,-857.42,0.00021095,2]
[349537994,1737283896109,-500.0,0.00021095,2]
[349537995,1737283896118,-1848.61,0.00021095,2]
[349537996,1737283896127,-500.0,0.00021095,2]
[349537997,1737283896137,-1098.96,0.00021095,2]
[349537998,1737283896146,-500.0,0.00021095,2]
[349537999,1737283896155,-500.0,0.00021095,2]
[349538000,1737283896165,-2979.32,0.00021095,2]
[349538001,1737283896174,-500.0,0.00021095,2]
[349538002,1737283896184,-500.0,0.00021095,2]
[349538003,1737283896193,-793.62,0.00021095,2]
[349538004,1737283896202,-500.0,0.00021095,2]
[349538005,1737283896212,-500.0,0.00021095,2]
[349538006,1737283896221,-1198.76,0.00021095,2]
[349538007,1737283896230,-572.69,0.00021095,2]
[349538008,1737283896240,-500.0,0.00021095,2]
[349538009,1737283896249,-500.0,0.00021095,2]
[349538010,1737283896262,-500.0,0.00021095,2]
[349538011,1737283896271,-500.0,0.00021095,2]
[349538012,1737283896280,-500.0,0.00021095,2]
[349538013,1737283896290,-745.22,0.00021095,2]
[349538014,1737283896300,-500.0,0.00021095,2]
[349538015,1737283896310,-590.61,0.00021095,2]
[349538016,1737283896319,-500.0,0.00021095,2]
[349538017,1737283896329,-500.0,0.00021095,2]
[349538018,1737283896339,-514.70505436,0.00021095,2]
[349538019,1737283896351,-465.99,0.00021095,2]
[349538020,1737283896361,-713.24,0.00021095,2]
[349538021,1737283896371,-523.75,0.00021095,2]
[349538022,1737283896380,-536.69,0.00021095,2]
[349538023,1737283896390,-500.0,0.00021095,2]
[349538024,1737283896399,-917.76,0.00021095,2]
[349538025,1737283896409,-500.0,0.00021095,2]
[349538026,1737283896418,-512.37,0.00021095,2]
[349538027,1737283896428,-500.0,0.00021095,2]
[349538028,1737283896438,-541.39,0.00021095,2]
[349538029,1737283896447,-766.68,0.00021095,2]
[349538030,1737283896458,-776.23,0.00021095,2]
[349538031,1737283896469,-500.0,0.00021095,2]
[349538032,1737283896479,-587.27305896,0.00021095,2]
[349538033,1737283896488,-500.0,0.00021095,2]
[349538034,1737283896498,-500.0,0.00021095,2]
[349538035,1737283896507,-500.0,0.00021095,2]
[349538036,1737283896517,-518.56,0.00021095,2]
[349538037,1737283896526,-500.0,0.00021095,2]
[349538038,1737283896536,-783.5,0.00021095,2]
[349538039,1737283896546,-500.0,0.00021095,2]
[349538040,1737283896555,-584.68,0.00021095,2]